Cogmind - Beta 13 @@@ ROGUE MODE // 2024.06.03 @ 20:50:10 Player: paplal Result: Self-destructed Performance ------------- Evolutions (3) 1500 Regions Visited (4) 800 Robots Destroyed (106) 530 Value Destroyed (2381) 2381 Prototype IDs (3) 60 Alien Tech Used (0) 0 Bonus (41) 41 TOTAL SCORE: 5312 Bonus ------- High Alert Combat Kills 41 Cogmind --------- Core Integrity 544/700 Matter 13/300 Energy 25/100 System Corruption 1% Temperature Cool (0) Movement Treading (161) Location -7/Factory Parts ------- > --- POWER (2) -------- (None) > --- PROPULSION (4) --- Armored Treads Armored Treads Advanced Treads > --- UTILITY (5) ------ Disposable Heat Sink High-capacity Storage Unit Advanced Weight Redist. System Hacking Suite Recalibrator > --- WEAPON (2) ------- Flak Gun Missile Launcher > --- INVENTORY (20) --- Light Deuterium Engine Light Nuclear Core Light Treads Advanced Treads Heavy EM Pulse Gun Field Laser Heavy Laser Particle Cannon Plasma Cannon Minigun Gauss Cannon Mini Grenade Launcher Missile Launcher Peak State ------------ > --- POWER ------------ Light Nuclear Core Light Angular Momentum Engine > --- PROPULSION ------- Light Treads Light Treads Light Treads Armored Treads > --- UTILITY ---------- Improved Heat Sink High-capacity Storage Unit Advanced Weight Redist. System Hardened Medium Armor Plating Hacking Suite > --- WEAPON ----------- Improved Assault Rifle Assault Cannon > --- INVENTORY -------- Light Deuterium Engine Light Nuclear Core Light Nuclear Core Light Nuclear Core Light Treads Armored Treads Armored Treads Advanced Treads Advanced Treads Recalibrator Heavy EM Pulse Gun Field Laser Particle Cannon Shotgun Minigun Flak Gun Mini Grenade Launcher Missile Launcher Missile Launcher [Rating: 38] Favorites ----------- Power Heavy Ion Engine Engine Heavy Ion Engine Power Core Light Nuclear Core Propulsion Light Treads Treads Light Treads Leg Aluminum Leg Wheel Wheel Flight Unit Improved Flight Unit Utility Hacking Suite Device Improved Heat Sink Storage High-capacity Storage Unit Processor Visual Processing Unit Hackware Hacking Suite Protection Hardened Medium Armor Plating Weapon Improved Assault Rifle Energy Gun Medium Laser Energy Cannon Particle Cannon Ballistic Gun Improved Assault Rifle Ballistic Cannon Assault Cannon Launcher Heavy Rocket Launcher Build | -11 -10 -9 -8 -7 ------- Run | Yrd Mat Mat Mat Fac Slots Evolved 6 | . . 2 2 2 Power 1 | . . . . 1 Propulsion 2 | . . . 1 1 Utility 3 | . . 2 1 . Weapon . | . . . . . Parts Attached 69 | 6 7 25 14 17 Power 10 | 1 1 3 1 4 Engine 6 | 1 1 3 . 1 Core 4 | . . . 1 3 Reactor . | . . . . . Propulsion 22 | 2 2 10 4 4 Treads 13 | . . 5 4 4 Leg 2 | . . 2 . . Wheel 6 | 2 2 2 . . Hover . | . . . . . Flight 1 | . . 1 . . Utility 16 | 1 3 6 4 2 Device 5 | . . 1 2 2 Storage 4 | 1 2 1 . . Processor 2 | . . 2 . . Hackware 1 | . . 1 . . Protection 4 | . 1 1 2 . Artifact . | . . . . . Weapon 21 | 2 1 6 5 7 Energy Gun 3 | 1 . 1 . 1 Energy Cannon 2 | . . 1 1 . Ballistic Gun 10 | 1 1 2 2 4 Ballistic Cannon 1 | . . . 1 . Launcher 5 | . . 2 1 2 Special Weapon . | . . . . . Impact Weapon . | . . . . . Slashing Weapon . | . . . . . Piercing Weapon . | . . . . . Special Melee Weapon . | . . . . . Unidentified Prototypes 3 | . . 3 . . Parts Lost 19 | . 2 7 . 10 Power 5 | . 1 . . 4 Propulsion 7 | . . 3 . 4 Utility 2 | . . 1 . 1 Weapon 5 | . 1 3 . 1 Highest Loss Streak 4 | . 1 3 . 4 To Critical Strikes . | . . . . . Average Slot Usage (%) 95 | . 90 96 98 91 Engine 8 | . 13 11 6 1 Core 2 | . . . 2 11 Treads 18 | . . 11 26 25 Wheel 5 | . 28 7 . . Device 11 | . . 6 15 20 Storage 9 | . 14 11 9 7 Processor 2 | . . 5 2 . Hackware 7 | . . 10 9 7 Protection 7 | . 6 8 8 1 Energy Gun 2 | . 9 2 . . Energy Cannon 2 | . . 4 4 . Ballistic Gun 12 | . 17 12 13 6 Launcher 1 | . . 2 . 3 Naked Turns . | . . . . . Heaviest Build 71 | 14 49 56 69 71 Greatest Support 91 | 20 26 40 69 91 Greatest Overweight (x) 10 | 4 2 10 1 1 Average Overweight (x) . | 2 . 1 . . Largest Inventory Capacity 20 | 8 20 20 20 20 Average Capacity 18 | 7 13 17 20 20 Most Carried 20 | 8 11 20 20 19 Average Carried 16 | 6 9 15 19 17 Final Capacity 20 | 8 15 20 20 20 Final Carried 20 | 8 8 20 20 13 Class Distribution -------------------- 75% | Scavenger-Mutant 24% | Mutant Dominant Class ---------------- Mutant | -10/Materials Scavenger-Mutant | -9/Materials Scavenger-Mutant | -8/Materials Scavenger-Mutant | -7/Factory Resources | -11 -10 -9 -8 -7 ----------- Run | Yrd Mat Mat Mat Fac Matter Collected 1670 | 243 237 521 593 76 Remotely . | . . . . . Salvage Created 3245 | 40 356 1359 1314 176 Parts 222 | 3 17 107 90 5 Haulers Intercepted 2 | . . 2 . . Recyclers Shooed 3 | . 1 2 . . Parts Field Recycled . | . . . . . Retrieved Matter . | . . . . . Parts Self-Destructed . | . . . . . Prevented . | . . . . . Kills | -11 -10 -9 -8 -7 ------- Run | Yrd Mat Mat Mat Fac Combat Hostiles Destroyed 60 | . 8 20 26 6 Guns 38 | . 8 11 14 5 Cannons 8 | . . 1 7 . AOE 14 | . . 8 5 1 Classes Destroyed 12 | 1 5 5 . 1 Worker 12 | 2 1 7 2 . Builder 10 | . . 4 6 . Tunneler 3 | . 1 . 2 . Hauler 2 | . . 2 . . Recycler 6 | . . 4 2 . Mechanic 2 | . . 2 . . Operator 2 | . 1 1 . . Watcher 9 | . 2 3 3 1 Swarmer 20 | . 3 7 10 . Grunt 28 | . 5 6 12 5 Sentry 11 | . . 7 4 . Programmer 1 | . . . . 1 Best Kill Streak 9 | 2 4 7 9 2 Combat Bots Only 7 | . 3 5 7 2 Max Kills in Single Turn 4 | 1 2 3 4 1 Gunslinging 1 | . 1 . . . Exploded 3 | . . 3 2 1 Melee . | . . . . . Uniques/NPCs Destroyed . | . . . . . Combat | -11 -10 -9 -8 -7 -------- Run | Yrd Mat Mat Mat Fac Hostile Shots Fired 378 | . 54 88 111 125 Missed 108 | . 19 28 31 30 Damage Taken 4071 | . 451 950 925 1745 Core 665 | . 109 235 165 156 Absorbed by Shields 252 | . . . 252 . Redirected to Shielding 49 | . 12 37 . . Regen/Repaired (Parts) 197 | . . . 85 112 Core Remaining (%) 66 | 100 56 41 70 . Volleys Fired 265 | 2 59 91 82 31 Largest 2 | 2 2 2 2 2 Hottest 107 | 70 70 98 91 107 Shots Fired 484 | 4 100 161 162 57 Gun 403 | 4 100 145 117 37 Cannon 65 | . . 9 42 14 Launcher 16 | . . 7 3 6 Special . | . . . . . Kinetic 335 | 2 64 111 123 35 Thermal 133 | 2 36 43 36 16 Explosive 16 | . . 7 3 6 Electromagnetic . | . . . . . Robot Hit Streak 25 | 1 7 10 25 14 Robot Miss Streak 5 | 2 5 3 5 3 Penetration Max . | . . . . . Secondary Targets 5 | . 1 2 1 1 Max Gunslinging Chain 1 | . 1 1 1 1 Shots Hit Robots 307 | 1 60 103 102 41 Core Hits 175 | 2 23 59 69 22 Critical Kills 3 | . 1 1 1 . Critical Parts Destroyed . | . . . . . Critical Strikes 11 | . 6 2 1 2 Burn 7 | . 5 1 . 1 Meltdown 1 | . . 1 . . Destroy 2 | . 1 . 1 . Blast 1 | . . . . 1 Melee Attacks . | . . . . . Impact . | . . . . . Slashing . | . . . . . Piercing . | . . . . . Sneak Attacks . | . . . . . Combat Hostiles . | . . . . . Follow-up Attacks . | . . . . . Damage Inflicted 5950 | 25 748 1839 2225 1113 Guns 3685 | 25 747 1110 1318 485 Cannons 860 | . . 164 419 277 Explosions 1370 | . . 556 470 344 Melee . | . . . . . Ramming 35 | . 1 9 18 7 Kinetic 3233 | . 472 740 1427 594 Thermal 1312 | 25 275 534 310 168 Explosive 1370 | . . 556 470 344 Electromagnetic . | . . . . . Impact . | . . . . . Slashing . | . . . . . Piercing . | . . . . . Highest Corruption 3 | . 3 2 . 1 Average Corruption 1 | . 2 2 . 1 Corruption Purged . | . . . . . Corruption Blocked . | . . . . . Effects 9 | . . 7 . 2 Message Errors 1 | . . . . 1 Matter Fused 3 | . . 2 . 1 Heat Flow Errors 1 | . . 1 . . Energy Discharges 2 | . . 2 . . Parts Fused 1 | . . 1 . . Data Loss (minor) 1 | . . 1 . . Overload Shots . | . . . . . Overflow Damage 54 | . . 34 16 4 Projectiles 1 | . . . 1 . Explosions 53 | . . 34 15 4 Melee . | . . . . . Knockbacks 9 | . . . 5 4 Impact 1 | . . . 1 . Kinetic 7 | . . . 3 4 Secondary 1 | . . . 1 . Self-Inflicted Damage 354 | . . 156 79 119 Shots 11 | . . 4 3 4 Rammed 5 | . 1 2 1 1 Targets Rammed 6 | . 1 2 2 1 Kicked . | . . . . . Crushed 1 | . . . 1 . Highest Temperature 437 | 18 99 437 3 319 Average Temperature 72 | 10 22 88 2 130 Received Heat Transfer 1571 | . 240 261 395 675 Effects 2 | . . 1 . 1 Short Circuit 1 | . . . . 1 Damage (minor) 1 | . . 1 . . Siege Activations . | . . . . . Robots Corrupted . | . . . . . Combat Hostiles . | . . . . . Parts Fried . | . . . . . Impact Corruptions . | . . . . . Robots Melted 1 | . . 1 . . Combat Hostiles . | . . . . . Parts Melted 5 | . 3 . 2 . Heat Transferred 3515 | 74 1184 1258 555 444 Parts Sabotaged . | . . . . . Parts Stolen . | . . . . . Parts Stripped . | . . . . . Power Chain Reactions . | . . . . . Alert | -11 -10 -9 -8 -7 ------- Run | Yrd Mat Mat Mat Fac Peak Influence 445 | 10 223 445 419 253 Initial 190 | . 6 35 148 190 Average 232 | 1 91 282 273 185 Maximum Alert Level 2 | . 1 2 2 1 Low Security (%) 39 | 100 91 24 24 57 Level 1 53 | . 8 58 69 42 Level 2 6 | . . 17 5 . Level 3 . | . . . . . Level 4 . | . . . . . Level 5 . | . . . . . High Security . | . . . . . Max Security . | . . . . . Squads Dispatched 12 | . 1 3 5 3 Investigation 4 | . . 1 2 1 Extermination 1 | . . . . 1 Reinforcement 7 | . 1 2 3 1 Assault . | . . . . . Garrison . | . . . . . Intercept . | . . . . . Searches Triggered . | . . . . . Construction Impeded 2 | . . 1 . 1 Haulers Reinforced . | . . . . . Active Scanning Responses . | . . . . . Cargo Convoy Interrupts . | . . . . . Stealth | -11 -10 -9 -8 -7 --------- Run | Yrd Mat Mat Mat Fac Distress Signals 9 | . 2 4 2 1 Communications Jammed . | . . . . . Distress Signals . | . . . . . Times Spotted 95 | . 16 29 38 12 Peak Tracking Total 8 | . 4 6 8 5 Tactical Retreats 2 | . 1 1 . . Traps | -11 -10 -9 -8 -7 ------- Run | Yrd Mat Mat Mat Fac Traps Triggered 4 | . 2 1 1 . Indirectly . | . . . . . Trap Hack Attempts . | . . . . . Triggered . | . . . . . Disarmed 1 | . . . 1 . Reprogrammed . | . . . . . Reused . | . . . . . Traps Extracted . | . . . . . Installed . | . . . . . Triggered . | . . . . . Machines | -11 -10 -9 -8 -7 ---------- Run | Yrd Mat Mat Mat Fac Machines Disabled 5 | . . 2 2 1 Max in Single Turn 2 | . . 2 1 1 Machines Repaired . | . . . . . Machines Dismantled . | . . . . . Machines Sabotaged . | . . . . . Overloaded Fab Kills . | . . . . . Hacking | -11 -10 -9 -8 -7 --------- Run | Yrd Mat Mat Mat Fac Machines Accessed 21 | . 5 7 5 4 Terminals 12 | . 3 5 3 1 Fabricators 1 | . . . . 1 Repair Stations 2 | . . . 1 1 Recycling Units 5 | . 2 1 1 1 Scanalyzers 1 | . . 1 . . Garrison Access . | . . . . . Total Hacks 52 | . 9 19 13 11 Successful 29 | . 4 11 9 5 Failed 23 | . 5 8 4 6 Catastrophic 2 | . . 2 . . Database Lockouts . | . . . . . Manual . | . . . . . Terminals 28 | . 6 14 6 2 Fabricators 2 | . . . . 2 Repair Stations 10 | . . . 5 5 Recycling Units 9 | . 3 2 2 2 Scanalyzers 3 | . . 3 . . Garrison Access . | . . . . . Terminal Hacks 14 | . 3 6 4 1 Robot Analysis 1 | . 1 . . . Open DSF 1 | . . . . 1 Terminal Index 1 | . . . 1 . Alert Level 1 | . . 1 . . Locate Traps 1 | . . 1 . . Disarm Traps 1 | . . . 1 . Transport Status 1 | . 1 . . . Reinforcement Status 2 | . 1 1 . . Recall Investigation 1 | . . 1 . . Hauler Manifests 2 | . . . 2 . Registered Components 1 | . . 1 . . Zone Layout 1 | . . 1 . . Fabricator Hacks 1 | . . . . 1 Load Schematic 1 | . . . . 1 Repair Station Hacks 6 | . . . 4 2 Scan Component 3 | . . . 2 1 Repair 3 | . . . 2 1 Recycling Unit Hacks 5 | . 1 2 1 1 Process 1 | . . 1 . . Retrieve Components 4 | . 1 1 1 1 Scanalyzer 3 | . . 3 . . Insert Component 2 | . . 2 . . Analyze 1 | . . 1 . . Garrison Access Hacks . | . . . . . Unauthorized Hacks . | . . . . . Terminals . | . . . . . Fabricators . | . . . . . Repair Stations . | . . . . . Recycling Units . | . . . . . Scanalyzers . | . . . . . Garrison Access . | . . . . . Data Cores Recovered 1 | . . 1 . . Used . | . . . . . Hacking Detections 17 | . 3 7 3 4 Full Trace Events 3 | . . 1 1 1 Feedback Events . | . . . . . Feedback Blocked . | . . . . . Robot Schematics Acquired . | . . . . . Robots Built . | . . . . . Authchips . | . . . . . Time . | . . . . . Total Robot Build Rating . | . . . . . Part Schematics Acquired 1 | . . 1 . . Parts Built . | . . . . . Authchips . | . . . . . Time . | . . . . . Total Part Build Rating . | . . . . . Parts Repaired 3 | . . . 2 1 Time 86 | . . . 64 22 Parts Recycled . | . . . . . Recycled Matter 120 | . . 120 . . Retrieved Matter . | . . . . . Retrieved Components 28 | . 5 10 10 3 Parts Scanalyzed 1 | . . 1 . . Part Schematics Acquired 1 | . . 1 . . Parts Damaged . | . . . . . Bothacking | -11 -10 -9 -8 -7 ------------ Run | Yrd Mat Mat Mat Fac Used RIF Installer . | . . . . . Robots Hacked . | . . . . . Non-combat . | . . . . . Combat . | . . . . . Robot Hacks Applied . | . . . . . Relay Couplers Released . | . . . . . Fabnet Peak Effective % . | . . . . . Robots Rewired . | . . . . . Allies Hacked . | . . . . . Hacks Repelled . | . . . . . Allies | -11 -10 -9 -8 -7 -------- Run | Yrd Mat Mat Mat Fac Total Allies . | . . . . . Largest Group . | . . . . . Highest-Rated Group . | . . . . . Highest-Rated Ally . | . . . . . Total Orders . | . . . . . Ally Attacks . | . . . . . Total Damage . | . . . . . Kills . | . . . . . Allies Corrupted . | . . . . . Allies Melted . | . . . . . Intel | -11 -10 -9 -8 -7 ------- Run | Yrd Mat Mat Mat Fac Robot Analysis Total 1 | . 1 . . . Derelict Logs Recovered . | . . . . . Drone Launches . | . . . . . Drone Recoveries . | . . . . . Exploration | -11 -10 -9 -8 -7 ------------- Run | Yrd Mat Mat Mat Fac Turns Passed 5153 | 117 696 1379 2234 727 Spaces Moved 2374 | 59 507 589 889 330 Core 59 | 57 . 2 . . Treads 1505 | . . 286 889 330 Legs 57 | . . 57 . . Wheels 753 | 2 507 244 . . Hover . | . . . . . Flight . | . . . . . Fastest Speed 50 | 50 80 100 160 161 Average Speed 170 | 159 94 176 213 163 Slowest Speed 550 | 250 110 550 245 240 Overloaded Moves . | . . . . . Propulsion Burnouts . | . . . . . Robots Hopped . | . . . . . Cave-ins Triggered . | . . . . . Exploration Rate (%) 42 | 4 80 59 64 7 Regions Visited 4 Branch Regions . Pre-discovered Areas . | . . . . . Known Exits Taken . | . . . . . Unknown Exits Taken 4 | 1 1 1 1 . Scrap Searched . | . . . . . Spaces Dug . | . . . . . Terrain Destroyed 107 | . . 40 7 60 Melee . | . . . . . Projectile 2 | . . . 1 1 AOE 105 | . . 40 6 59 Terrain Rammed . | . . . . . Walls Destroyed . | . . . . . Machines Disabled . | . . . . . Actions | -11 -10 -9 -8 -7 --------- Run | Yrd Mat Mat Mat Fac Total 3015 | 75 623 783 1071 463 Wait 174 | . 39 30 35 70 Move 2370 | 58 506 588 888 330 Hop . | . . . . . Pick Up 79 | 9 7 31 24 8 Fast Attach 15 | 5 . 5 5 . Attach 37 | 1 5 14 3 14 Detach 1 | . . . . 1 Swap 17 | . 2 6 6 3 Drop 51 | . 4 16 26 5 Fire 265 | 2 59 91 82 31 Melee . | . . . . . Ram 2 | . 1 1 . . Kick . | . . . . . Crush 4 | . . 1 2 1 Escape Stasis . | . . . . . Rewire . | . . . . . Trap . | . . . . . Miscellaneous . | . . . . . Route ------- -11/Scrapyard -10/Materials (discovered 4 exits: *Mat x3 / [*Min]) -9/Materials (discovered 3 exits: *Mat x2 / [*Min]) -8/Materials (discovered 4 exits: *Fac x2 / [*Sto x2]) -7/Factory History --------- Turn | Location | Event 28 | -11/Scrapyard | Discovered new exit (range 16) 118 | -11/Scrapyard | Entered Materials 311 | -10/Materials | Build established: Mutant 373 | -10/Materials | Discovered new exit (range 5) 487 | -10/Materials | Discovered new exit (range 9) 701 | -10/Materials | Discovered new exit (range 15) 758 | -10/Materials | Discovered new exit (range 16) 814 | -10/Materials | Entered another Materials area 814 | -9/Materials | Evolved 2 slots: Utility x2 910 | -9/Materials | Lost 3 parts (1n2w) 1120 | -9/Materials | Discovered new exit (range 6) 1503 | -9/Materials | Core integrity fell below 50% 1553 | -9/Materials | Discovered new exit (range 16) 1670 | -9/Materials | Build established: Scavenger-Mutant 2107 | -9/Materials | Discovered new exit (range 17) 2193 | -9/Materials | Entered another Materials area 2193 | -8/Materials | Evolved 2 slots: Propulsion x1, Utility x1 2638 | -8/Materials | Discovered new exit (range 14) 2795 | -8/Materials | Discovered new exit (range 10) 3175 | -8/Materials | Destroyed 7 combat bots 3782 | -8/Materials | Discovered new exit (range 5) 3793 | -8/Materials | Discovered new exit (range 15) 4187 | -8/Materials | Repaired Hrd. Medium Armor Plating 4213 | -8/Materials | Repaired Lgt. Treads 4427 | -8/Materials | Entered Factory 4427 | -7/Factory | Evolved 2 slots: Power x1, Propulsion x1 4538 | -7/Factory | Repaired Gauss Cannon 4644 | -7/Factory | Lost 3 parts (1p1n1u) 5024 | -7/Factory | Lost 4 parts (1p2n1w) 5154 | -7/Factory | Self-destructed Last Messages --------------- 05032_ U-05 Engineer builds a Wall. 05033_ U-05 Engineer lays Concrete. 05036_ U-05 Engineer builds a Wall. 05040_ U-05 Engineer lays Concrete. 05041_ U-05 Engineer builds a Wall. 05044_ Dropped Minigun. 05045_ Dropped Imp. Assault Rifle. 05045_ Acquired Minigun. 05051_ Acquired Plasma Cannon. 05059_ U-05 Engineer lays Concrete. 05059_ U-05 Engineer builds a Wall. 05071_ U-05 Engineer destroyed. 05071_ T-07 Excavator destroyed. 05081_ K-01 Serf collects debris. 05111_ M-28 Smith repairs L-41 Fighter. 05117_ /80FFJ1J1CMT=YPKJYI=PBQVDUW8BSZW 05117_ M-28 Smith repairs L-41 Fighter. 05122_ Slammed into K-01 Serf. 05133_ Lgt. Nuclear Core destroyed. 05142_ Lgt. Treads destroyed. Map ----- +----------------------------------------------------+ | ?????????????????????????????????????????????????? | | ?????????????????????????????????????????????????? | | ?????????????????????????????????????????????????? | | ?????????????????????????????????????????????????? | | ?????????????????????????????????????????????????? | | ?????????????????????????????????????????????????? | | ?????????????????????????????????????????????????? | | ??????????????????????????##############?????????? | | ??????????????????????????# #?????????? | | ??????????????????????????# "" """" #?????????? | | ??????????????????????????# """ """" #?????????? | | ??????????????????????????# "F """" #?????????? | | ??????????????????????????# """ """" #?????????? | | ##########????????????????# "" """" #?????????? | | #????????????????# """" #?????????? | | #????????????????# #?????????? | | #????????????????# #?????????? | | +????????????????# #?????????? | | ?? #????????????????# #?????????? | | ???# #????????????????# #?????????? | | ???# ########################+######?????????? | | ???# #??????###### | | ???# ######## | | ???# + | | ???# g gg ##### | | ???# l@ =#???# | | ???# ############+### #???# | | ???# #????# # k [! ##### | | ???# #????# ######## [! # | | ???# #????# """"""" # + [! # | | ???# #????# """"""" # """ # ! " | | ???# #????# """"""" # """ # [ "Y" [ # | | ???# #????# """"""" # """ / """ % %] # | | ???# #????# # #########+##+# | | ???# #????# # #???# % # | | ???# #????########### #???# """% # | | #### #??????????????#!!! #???# """% # | | #??????????????#!!! #???# """ # | | #### #??????????????#!! #???# ###### | | ???# #??????????????# #???# #????? | | ???# #??????????????# #???# " "" #????? | | "??# #??????????????# #???# "R"" #????? | | "??# #??????????????########???# """" #????? | | " ?# +?????????????????????????##########????? | | " ?+ #???????????????????????????????????????? | | ???# #???????????????????????????????????????? | | ???+ #???????????????????????????????????????? | | ???# ^ #???????????????????????????????????????? | | ???? #???????????????????????????????????????? | | ???? #???????????????????????????????????????? | +----------------------------------------------------+ Best States ------------- Heat Dissipation 48 Coolant Potential 50 Energy Generation 27 Energy Capacity 280 Matter Stores 300 Matter Capacity 300 Sight Range 18 Terrain Scan Density 10 Additional Mass Support 9 Armor Coverage 225 Propulsion Shielding 33 Evasion (%) 50 Recoil Reduction 4 Offensive Hacking 10 Item Schematics ----------------- Lgt. Treads | -9/Materials | Scanalyzed Robot Schematics ------------------ None Fabricated ------------ Nothing Alien Tech Used ----------------- None Achievements -------------- None Challenges ------------ None Game ------ Seed SchematicReactiveMultitool Manual? 0 Play Time 01:09:08 Cumulative 15.0 hours Start 2024.06.03 @ 19:25:34 End 2024.06.03 @ 20:50:10 Sessions 1 Manual Loads 0 Difficulty Rogue Special Mode None Game No. 22 Rogue 22 Adventurer 0 Explorer 0 Win Type - Total 0 Types 0/0/0/0/0/0/0/0/0 Lore% 13 Gallery% 23 Achievement% 17 Wizard Run 0 Options --------- Layout 2 ASCII 0 Keyboard 0 Movement Mouse Keybinds 0 Fullscreen 1 Font 48/Smallcaps Map View 50x44 Zoom Use 0% Tactical HUD 1 Map Filters NONE Filters NONE Steam 1 RUN: d9df0055-3f4c-4fce-8502-14373d5b7cda